[Event "Hungarian Rapid-ch 2022"]
[Site "Ajka"]
[Date "2022.07.15"]
[Round "3.24"]
[White "Ats, Laszlo Gyorgy"]
[Black "Kovacs, Klara"]
[Result "1/2-1/2"]
[ECO "D00"]
[WhiteElo "1923"]
[BlackElo "2098"]
[Annotator "ChessBase"]
[PlyCount "49"]
[EventDate "2022.07.15"]
[EventType "swiss"]
[EventCountry "HUN"]
[SourceTitle "playchess.com"]
[Source "ChessBase"]
[SourceQuality "1"]
[TimeControl "900+10"]

1. d4 {[%emt 0:00:11]} d5 {[%emt 0:00:13]} 2. Bf4 {[%emt 0:00:02]} Nf6 {[%emt 0:00:02]} 3. h4 {[%emt 0:00:01]} c5 {[%emt 0:00:04]} 4. e3 {[%emt 0:00:02]} Nc6 {[%emt 0:00:01]} 5. c3 {[%emt 0:00:01]} e6 {[%emt 0:00:05]} 6. Nf3 {[%emt 0:00:10]} Be7 {[%emt 0:00:04]} 7. Nbd2 {[%emt 0:00:02]} O-O {[%emt 0:00:02]} 8. Bd3 {[%emt 0:00:08]} cxd4 {[%emt 0:00:03]} 9. exd4 {[%emt 0:00:04]} a6 {[%emt 0:00:40]} 10. Ne5 {[%emt 0:00:05]} Nxe5 {[%emt 0:00:15]} 11. Bxe5 {[%emt 0:00:01]} Nd7 {[%emt 0:00:28]} 12. Qh5 {[%emt 0:01:19]} g6 {[%emt 0:01:33]} 13. Qe2 {[%emt 0:00:02]} Nxe5 {[%emt 0:02:10]} 14. dxe5 {[%emt 0:00:01]} d4 {[%emt 0:00:10]} 15. c4 {[%emt 0:00:30]} b5 {[%emt 0:00:20]} 16. cxb5 {[%emt 0:00:12]} axb5 {[%emt 0:00:01]} 17. h5 {[%emt 0:00:31]} Qd5 {[%emt 0:01:16]} 18. hxg6 {[%emt 0:01:50]} fxg6 {[%emt 0:00:17]} 19. Rxh7 {[%emt 0:00:42]} Bg5 {[%emt 0:03:13]} 20. Bxg6 {[%emt 0:01:11]} Qxg2 {[%emt 0:00:49]} 21. Rh8+ {[%emt 0:01:46]} Kg7 {[%emt 0:00:10]} 22. Rxf8 {[%emt 0:00:02]} Kxf8 {[%emt 0:01:55]} 23. Qf3+ {[%emt 0:01:09]} Qxf3 {[%emt 0:00:03]} 24. Nxf3 {[%emt 0:00:01]} Bf4 {[%emt 0:00:07]} 25. Be4 {[%emt 0:00:43]} 1/2-1/2

[Event "Hungarian Rapid-ch 2022"]
[Site "Ajka"]
[Date "2022.07.15"]
[Round "3.25"]
[White "Szamoskozi, Gabor"]
[Black "Kiss, Gergely"]
[Result "1-0"]
[ECO "B15"]
[WhiteElo "2243"]
[BlackElo "2166"]
[Annotator "ChessBase"]
[PlyCount "69"]
[EventDate "2022.07.15"]
[EventType "swiss"]
[EventCountry "HUN"]
[SourceTitle "playchess.com"]
[Source "ChessBase"]
[SourceQuality "1"]
[TimeControl "900+10"]

1. e4 {[%emt 0:00:13]} c6 {[%emt 0:00:23]} 2. d4 {[%emt 0:00:16]} d5 {[%emt 0:00:06]} 3. Nc3 {[%emt 0:00:07]} dxe4 {[%emt 0:00:12]} 4. Nxe4 {[%emt 0:00:03]} Nf6 {[%emt 0:00:06]} 5. Nxf6+ {[%emt 0:00:29]} exf6 {[%emt 0:00:02]} 6. c3 {[%emt 0:00:06]} Bd6 {[%emt 0:00:04]} 7. Bd3 {[%emt 0:00:08]} O-O {[%emt 0:00:39]} 8. Qc2 {[%emt 0:00:04]} g6 {[%emt 0:00:13]} 9. Ne2 {[%emt 0:00:20]} Qc7 {[%emt 0:00:59]} 10. h4 {[%emt 0:00:10]} Bg4 {[%emt 0:01:04]} 11. Be3 {[%emt 0:01:08]} Bxe2 {[%emt 0:00:44]} 12. Qxe2 {[%emt 0:00:35]} Nd7 {[%emt 0:00:28]} 13. O-O-O {[%emt 0:00:21]} Bf4 {[%emt 0:00:59]} 14. g3 {[%emt 0:00:09]} Bxe3+ {[%emt 0:00:03]} 15. Qxe3 {[%emt 0:00:02]} f5 {[%emt 0:01:09]} 16. h5 {[%emt 0:01:55]} Rfe8 {[%emt 0:01:22]} 17. Qh6 {[%emt 0:00:23]} Nf8 {[%emt 0:00:12]} 18. Bc4 {[%emt 0:00:56]} Kh8 {[%emt 0:00:44]} 19. Rde1 {[%emt 0:00:53]} Re7 {[%emt 0:01:24]} 20. Qg5 {[%emt 0:00:22]} Rae8 {[%emt 0:01:08]} 21. Qf6+ {[%emt 0:01:47]} Kg8 {[%emt 0:00:03]} 22. h6 {[%emt 0:02:15]} Rxe1+ {[%emt 0:02:10]} 23. Rxe1 {[%emt 0:00:03]} Rxe1+ {[%emt 0:00:02]} 24. Kd2 {[%emt 0:00:02]} Ne6 {[%emt 0:00:15]} 25. Kxe1 {[%emt 0:00:27]} Qd8 {[%emt 0:00:17]} 26. Qe5 {[%emt 0:01:37]} Qe7 {[%emt 0:00:33]} 27. f4 {[%emt 0:00:20]} g5 {[%emt 0:01:26]} 28. Kd2 {[%emt 0:01:45]} gxf4 {[%emt 0:00:25]} 29. gxf4 {[%emt 0:00:18]} Qh4 {[%emt 0:02:03]} 30. Bxe6 {[%emt 0:00:05]} Qf2+ {[%emt 0:00:03]} 31. Kc1 {[%emt 0:00:16]} Qg1+ {[%emt 0:00:07]} 32. Kc2 {[%emt 0:00:03]} fxe6 33. Qxe6+ {[%emt 0:00:07]} Kf8 {[%emt 0:00:01]} 34. Qxf5+ {[%emt 0:00:05]} Ke8 {[%emt 0:00:01]} 35. Qc8+ {[%emt 0:00:17]} 1-0

[Event "Hungarian Rapid-ch 2022"]
[Site "Ajka"]
[Date "2022.07.15"]
[Round "3.26"]
[White "Kelemen, David"]
[Black "Hardicsay, Peter"]
[Result "1/2-1/2"]
[ECO "B30"]
[WhiteElo "2136"]
[BlackElo "2199"]
[Annotator "ChessBase"]
[PlyCount "73"]
[EventDate "2022.07.15"]
[EventType "swiss"]
[EventCountry "HUN"]
[SourceTitle "playchess.com"]
[Source "ChessBase"]
[SourceQuality "1"]
[TimeControl "900+10"]

1. e4 {[%emt 0:00:14]} c5 {[%emt 0:00:12]} 2. Nf3 {[%emt 0:00:01]} Nc6 {[%emt 0:00:01]} 3. Bb5 {[%emt 0:00:02]} e6 {[%emt 0:00:12]} 4. Bxc6 {[%emt 0:00:10]} bxc6 {[%emt 0:00:05]} 5. d3 {[%emt 0:00:12]} d6 {[%emt 0:00:27]} 6. O-O {[%emt 0:00:12]} Ne7 {[%emt 0:00:41]} 7. Nh4 {[%emt 0:00:33]} Ng6 {[%emt 0:00:25]} 8. Nxg6 {[%emt 0:00:03]} hxg6 {[%emt 0:00:02]} 9. f4 {[%emt 0:00:43]} Be7 {[%emt 0:01:29]} 10. Qf3 {[%emt 0:02:32]} Qb6 {[%emt 0:00:52]} 11. Kh1 {[%emt 0:00:15]} Bd7 {[%emt 0:00:58]} 12. Nd2 {[%emt 0:00:09]} d5 {[%emt 0:00:09]} 13. Rb1 {[%emt 0:02:31]} a5 {[%emt 0:02:05]} 14. c4 {[%emt 0:03:10]} d4 {[%emt 0:01:07]} 15. e5 {[%emt 0:00:06]} f5 {[%emt 0:00:40]} 16. exf6 {[%emt 0:00:09]} gxf6 {[%emt 0:00:05]} 17. Ne4 {[%emt 0:00:29]} O-O-O {[%emt 0:01:02]} 18. Bd2 {[%emt 0:00:29]} Rh7 {[%emt 0:01:02]} 19. b4 {[%emt 0:01:56]} cxb4 {[%emt 0:00:56]} 20. c5 {[%emt 0:00:03]} Qb5 {[%emt 0:02:47]} 21. a3 {[%emt 0:00:17]} Rdh8 {[%emt 0:00:15]} 22. h3 {[%emt 0:00:01]} f5 {[%emt 0:00:19]} 23. Nd6+ {[%emt 0:02:21]} Bxd6 {[%emt 0:00:05]} 24. cxd6 {[%emt 0:00:01]} e5 {[%emt 0:01:02]} 25. axb4 {[%emt 0:01:09]} e4 {[%emt 0:00:24]} 26. Qg3 {[%emt 0:00:52]} e3 {[%emt 0:00:28]} 27. bxa5 {[%emt 0:00:06]} Qd5 {[%emt 0:00:05]} 28. Kg1 {[%emt 0:00:13]} exd2 {[%emt 0:00:10]} 29. a6 {[%emt 0:00:07]} c5 {[%emt 0:00:16]} 30. a7 {[%emt 0:00:35]} Bc6 {[%emt 0:00:09]} 31. Qxg6 {[%emt 0:00:12]} Kd7 {[%emt 0:00:47]} 32. Rb8 {[%emt 0:00:02]} Rxh3 {[%emt 0:00:26]} 33. Qg7+ {[%emt 0:00:17]} Kxd6 {[%emt 0:00:07]} 34. Qf6+ {[%emt 0:00:18]} Kc7 {[%emt 0:00:12]} 35. Qg7+ {[%emt 0:00:06]} Kd6 {[%emt 0:00:09]} 36. Qf6+ {[%emt 0:00:09]} Kc7 {[%emt 0:00:02]} 37. Qg7+ {[%emt 0:00:01]} 1/2-1/2

[Event "Hungarian Rapid-ch 2022"]
[Site "Ajka"]
[Date "2022.07.15"]
[Round "3.27"]
[White "Hrubos, Viktor"]
[Black "Kaczur, Florian"]
[Result "0-1"]
[ECO "A05"]
[WhiteElo "1890"]
[BlackElo "2482"]
[Annotator "ChessBase"]
[PlyCount "34"]
[EventDate "2022.07.15"]
[EventType "swiss"]
[EventCountry "HUN"]
[SourceTitle "playchess.com"]
[Source "ChessBase"]
[SourceQuality "1"]
[TimeControl "900+10"]

1. Nf3 {[%emt 0:00:11]} Nf6 {[%emt 0:00:11]} 2. c4 {[%emt 0:00:01]} c5 {[%emt 0:00:05]} 3. b3 {[%emt 0:00:01]} g6 {[%emt 0:00:05]} 4. Bb2 {[%emt 0:00:01]} Bg7 {[%emt 0:00:02]} 5. e3 {[%emt 0:00:01]} O-O {[%emt 0:00:04]} 6. Be2 {[%emt 0:00:01]} Nc6 {[%emt 0:00:17]} 7. a3 {[%emt 0:00:03]} d5 {[%emt 0:00:06]} 8. d3 {[%emt 0:00:18]} d4 {[%emt 0:00:32]} 9. Nbd2 {[%emt 0:00:44]} dxe3 {[%emt 0:00:39]} 10. fxe3 {[%emt 0:00:03]} Ng4 {[%emt 0:00:12]} 11. Bxg7 {[%emt 0:00:23]} Nxe3 {[%emt 0:00:06]} 12. Qc1 {[%emt 0:00:03]} Kxg7 {[%emt 0:00:04]} 13. h3 {[%emt 0:00:11]} Nxg2+ {[%emt 0:00:14]} 14. Kf2 {[%emt 0:00:08]} Nf4 {[%emt 0:00:03]} 15. Qb2+ {[%emt 0:01:45]} e5 {[%emt 0:00:03]} 16. h4 {[%emt 0:00:25]} Qxd3 {[%emt 0:00:38]} 17. Rae1 {[%emt 0:00:30]} Qxe2+ {[%emt 0:00:08]} 0-1

[Event "Hungarian Rapid-ch 2022"]
[Site "Ajka"]
[Date "2022.07.15"]
[Round "3.28"]
[White "Czebe, Attila"]
[Black "Virag, Balint"]
[Result "1-0"]
[ECO "A08"]
[WhiteElo "2385"]
[BlackElo "2164"]
[Annotator "ChessBase"]
[PlyCount "119"]
[EventDate "2022.07.15"]
[EventType "swiss"]
[EventCountry "HUN"]
[SourceTitle "playchess.com"]
[Source "ChessBase"]
[SourceQuality "1"]
[TimeControl "900+10"]

1. e4 {[%emt 0:00:16]} e6 {[%emt 0:00:13]} 2. d3 {[%emt 0:00:03]} d5 {[%emt 0:00:01]} 3. Nd2 {[%emt 0:00:01]} c5 {[%emt 0:00:03]} 4. g3 {[%emt 0:00:03]} Nc6 {[%emt 0:00:03]} 5. Bg2 {[%emt 0:00:01]} Nf6 {[%emt 0:00:06]} 6. Ngf3 {[%emt 0:00:02]} Be7 {[%emt 0:00:32]} 7. O-O {[%emt 0:00:03]} O-O {[%emt 0:00:03]} 8. Re1 {[%emt 0:00:07]} Nd7 {[%emt 0:00:06]} 9. exd5 {[%emt 0:00:18]} exd5 {[%emt 0:00:04]} 10. d4 {[%emt 0:00:02]} Nf6 {[%emt 0:00:41]} 11. dxc5 {[%emt 0:00:08]} Bxc5 {[%emt 0:01:04]} 12. Nb3 {[%emt 0:00:02]} Bb6 {[%emt 0:00:04]} 13. Be3 {[%emt 0:00:20]} Be6 {[%emt 0:00:23]} 14. Bxb6 {[%emt 0:00:09]} Qxb6 {[%emt 0:00:02]} 15. Nfd4 {[%emt 0:00:23]} Rfe8 {[%emt 0:00:17]} 16. Nxc6 {[%emt 0:01:58]} bxc6 {[%emt 0:00:04]} 17. Qd4 {[%emt 0:00:05]} Qxd4 {[%emt 0:00:54]} 18. Nxd4 {[%emt 0:00:01]} c5 {[%emt 0:00:01]} 19. Nb5 {[%emt 0:01:55]} Rad8 {[%emt 0:03:01]} 20. b3 {[%emt 0:01:44]} Re7 {[%emt 0:00:14]} 21. Nc3 {[%emt 0:00:25]} Kf8 {[%emt 0:00:10]} 22. Rad1 {[%emt 0:00:18]} Red7 {[%emt 0:00:45]} 23. Na4 {[%emt 0:00:18]} Rc7 {[%emt 0:00:15]} 24. c4 {[%emt 0:00:23]} d4 {[%emt 0:00:09]} 25. h3 {[%emt 0:00:19]} h5 {[%emt 0:00:32]} 26. Re5 {[%emt 0:00:08]} Rdc8 {[%emt 0:00:14]} 27. Nb2 {[%emt 0:00:20]} g6 {[%emt 0:00:09]} 28. Nd3 {[%emt 0:02:41]} Bf5 {[%emt 0:00:13]} 29. Nf4 {[%emt 0:00:06]} Re7 {[%emt 0:00:48]} 30. Rxe7 {[%emt 0:01:28]} Kxe7 {[%emt 0:00:01]} 31. Bf3 {[%emt 0:00:26]} Kd6 {[%emt 0:00:38]} 32. Kg2 {[%emt 0:00:01]} Re8 {[%emt 0:00:30]} 33. Kh2 {[%emt 0:01:12]} a5 {[%emt 0:00:03]} 34. Kg2 {[%emt 0:00:13]} Rb8 {[%emt 0:00:54]} 35. Re1 {[%emt 0:00:21]} a4 {[%emt 0:01:42]} 36. bxa4 {[%emt 0:00:07]} Rb4 {[%emt 0:00:02]} 37. Bd1 {[%emt 0:00:01]} g5 {[%emt 0:00:42]} 38. Nxh5 {[%emt 0:00:11]} Nxh5 {[%emt 0:00:36]} 39. Bxh5 {[%emt 0:00:02]} Be6 {[%emt 0:00:39]} 40. h4 {[%emt 0:02:30]} gxh4 {[%emt 0:00:04]} 41. gxh4 {[%emt 0:00:00]} Rxa4 {[%emt 0:00:51]} 42. Bf3 {[%emt 0:00:09]} f5 {[%emt 0:02:21]} 43. h5 {[%emt 0:00:09]} Bxc4 {[%emt 0:00:37]} 44. Kg3 {[%emt 0:00:27]} Bd5 {[%emt 0:00:39]} 45. h6 {[%emt 0:01:59]} Bxf3 {[%emt 0:00:47]} 46. Kxf3 {[%emt 0:00:05]} Ra3+ {[%emt 0:00:01]} 47. Kg2 {[%emt 0:00:30]} Ra7 {[%emt 0:00:01]} 48. Kg3 {[%emt 0:00:06]} Rh7 {[%emt 0:00:07]} 49. Rh1 {[%emt 0:00:02]} c4 {[%emt 0:00:04]} 50. Kf3 {[%emt 0:00:07]} Kd5 {[%emt 0:00:14]} 51. Ke2 {[%emt 0:00:06]} f4 {[%emt 0:00:14]} 52. Rh5+ {[%emt 0:00:00]} Kd6 {[%emt 0:00:06]} 53. a4 {[%emt 0:00:04]} Kc6 {[%emt 0:00:13]} 54. a5 {[%emt 0:00:03]} Re7+ {[%emt 0:00:15]} 55. Kd2 {[%emt 0:00:05]} Rh7 {[%emt 0:00:02]} 56. Kc2 {[%emt 0:00:01]} f3 {[%emt 0:00:11]} 57. Kd2 {[%emt 0:00:07]} Kd6 {[%emt 0:00:29]} 58. a6 {[%emt 0:00:06]} Kc6 {[%emt 0:00:03]} 59. Ra5 {[%emt 0:00:08]} Re7 {[%emt 0:00:30]} 60. a7 {[%emt 0:00:03]} 1-0

[Event "Hungarian Rapid-ch 2022"]
[Site "Ajka"]
[Date "2022.07.15"]
[Round "3.29"]
[White "Meszaros, Tamas"]
[Black "Palla, Gyorgy"]
[Result "1-0"]
[ECO "B50"]
[WhiteElo "2368"]
[BlackElo "1983"]
[Annotator "ChessBase"]
[PlyCount "119"]
[EventDate "2022.07.15"]
[EventType "swiss"]
[EventCountry "HUN"]
[SourceTitle "playchess.com"]
[Source "ChessBase"]
[SourceQuality "1"]
[TimeControl "900+10"]

1. e4 {[%emt 0:00:12]} c5 {[%emt 0:00:13]} 2. Nf3 {[%emt 0:00:02]} d6 {[%emt 0:00:02]} 3. Bc4 {[%emt 0:00:28]} e6 {[%emt 0:00:14]} 4. O-O {[%emt 0:00:08]} Nc6 {[%emt 0:00:08]} 5. d3 {[%emt 0:00:14]} Be7 {[%emt 0:00:22]} 6. Re1 {[%emt 0:00:08]} Nf6 {[%emt 0:00:17]} 7. Nbd2 {[%emt 0:00:19]} O-O {[%emt 0:00:09]} 8. c3 {[%emt 0:00:04]} e5 {[%emt 0:01:39]} 9. Nf1 {[%emt 0:00:27]} Na5 {[%emt 0:00:19]} 10. Bb5 {[%emt 0:00:01]} a6 {[%emt 0:00:46]} 11. Ba4 {[%emt 0:00:02]} b5 {[%emt 0:00:06]} 12. Bc2 {[%emt 0:00:01]} Nc6 {[%emt 0:00:24]} 13. Ng3 {[%emt 0:00:12]} h6 {[%emt 0:00:33]} 14. h3 {[%emt 0:00:21]} Kh7 {[%emt 0:00:03]} 15. d4 {[%emt 0:00:20]} Ng8 {[%emt 0:01:26]} 16. a4 {[%emt 0:01:35]} b4 {[%emt 0:00:42]} 17. Be3 {[%emt 0:01:05]} cxd4 {[%emt 0:00:44]} 18. cxd4 {[%emt 0:00:02]} a5 {[%emt 0:00:12]} 19. Bb3 {[%emt 0:00:39]} exd4 {[%emt 0:00:32]} 20. Nxd4 {[%emt 0:00:02]} Nxd4 {[%emt 0:00:46]} 21. Qxd4 {[%emt 0:01:33]} Bf6 {[%emt 0:00:14]} 22. Qd2 {[%emt 0:00:02]} Ne7 {[%emt 0:00:53]} 23. Rad1 {[%emt 0:00:19]} Ng6 {[%emt 0:00:11]} 24. Nh5 {[%emt 0:01:42]} Be5 {[%emt 0:01:17]} 25. f4 {[%emt 0:00:21]} Qh4 {[%emt 0:00:26]} 26. fxe5 {[%emt 0:00:23]} Qxh5 {[%emt 0:00:04]} 27. exd6 {[%emt 0:00:02]} Bd7 {[%emt 0:00:17]} 28. Rc1 {[%emt 0:01:03]} Ne5 {[%emt 0:00:35]} 29. Qe2 {[%emt 0:03:04]} Qg6 {[%emt 0:00:31]} 30. Rc5 {[%emt 0:02:04]} f6 {[%emt 0:00:17]} 31. Kh2 {[%emt 0:00:21]} Kh8 {[%emt 0:00:31]} 32. Bf4 {[%emt 0:00:08]} Rfe8 {[%emt 0:00:45]} 33. Rc7 {[%emt 0:00:53]} Rad8 {[%emt 0:00:10]} 34. Qe3 {[%emt 0:00:54]} Qh5 {[%emt 0:00:36]} 35. Qg3 {[%emt 0:00:28]} g5 {[%emt 0:00:40]} 36. Bxe5 {[%emt 0:01:03]} Rxe5 {[%emt 0:00:04]} 37. Bd5 {[%emt 0:00:18]} Qg6 {[%emt 0:00:48]} 38. b3 {[%emt 0:00:07]} h5 {[%emt 0:00:10]} 39. Rf1 {[%emt 0:00:07]} Be6 {[%emt 0:00:28]} 40. Bxe6 {[%emt 0:00:14]} Rxe6 {[%emt 0:00:02]} 41. d7 {[%emt 0:00:10]} Kg7 {[%emt 0:00:19]} 42. Rd1 {[%emt 0:00:08]} Re7 {[%emt 0:00:16]} 43. Rd4 {[%emt 0:00:19]} h4 {[%emt 0:00:13]} 44. Qd6 {[%emt 0:00:02]} Qf7 {[%emt 0:00:07]} 45. Ra7 {[%emt 0:00:13]} Kg6 {[%emt 0:00:32]} 46. Rc7 {[%emt 0:00:15]} Re6 {[%emt 0:00:18]} 47. Qd5 {[%emt 0:00:04]} Re7 {[%emt 0:00:09]} 48. Qf5+ {[%emt 0:00:04]} Kg7 {[%emt 0:00:03]} 49. Rd6 {[%emt 0:00:25]} Re5 {[%emt 0:00:13]} 50. Qf3 {[%emt 0:00:09]} Qe7 {[%emt 0:00:06]} 51. Qd3 {[%emt 0:00:02]} Rxe4 {[%emt 0:00:16]} 52. Rc5 {[%emt 0:00:08]} Re5 {[%emt 0:00:19]} 53. Rc8 {[%emt 0:00:15]} Re1 {[%emt 0:00:30]} 54. Qd4 {[%emt 0:00:09]} Re5 {[%emt 0:00:09]} 55. Rxd8 {[%emt 0:00:04]} Qxd8 {[%emt 0:00:01]} 56. Rc6 {[%emt 0:00:18]} g4 {[%emt 0:01:03]} 57. Qxg4+ {[%emt 0:00:05]} Rg5 {[%emt 0:00:01]} 58. Qd4 {[%emt 0:00:12]} Kg6 {[%emt 0:00:30]} 59. Rc8 {[%emt 0:00:05]} Qe7 {[%emt 0:00:15]} 60. d8=Q {[%emt 0:00:09]} 1-0

[Event "Hungarian Rapid-ch 2022"]
[Site "Ajka"]
[Date "2022.07.15"]
[Round "3.30"]
[White "Jakab, Attila"]
[Black "Mozes, Ervin"]
[Result "1-0"]
[ECO "A53"]
[WhiteElo "2311"]
[BlackElo "2039"]
[Annotator "ChessBase"]
[PlyCount "91"]
[EventDate "2022.07.15"]
[EventType "swiss"]
[EventCountry "HUN"]
[SourceTitle "playchess.com"]
[Source "ChessBase"]
[SourceQuality "1"]
[TimeControl "900+10"]

1. d4 {[%emt 0:00:43]} Nf6 {[%emt 0:00:17]} 2. c4 {[%emt 0:00:03]} d6 {[%emt 0:00:05]} 3. Nc3 {[%emt 0:00:03]} c6 {[%emt 0:00:02]} 4. e4 {[%emt 0:00:03]} e5 {[%emt 0:00:08]} 5. d5 {[%emt 0:00:04]} Be7 {[%emt 0:00:21]} 6. Nf3 {[%emt 0:00:11]} O-O {[%emt 0:00:27]} 7. Be2 {[%emt 0:00:04]} Na6 {[%emt 0:00:09]} 8. O-O {[%emt 0:00:06]} Nc5 {[%emt 0:00:08]} 9. Qc2 {[%emt 0:00:07]} a5 {[%emt 0:00:10]} 10. Be3 {[%emt 0:00:07]} cxd5 {[%emt 0:00:48]} 11. cxd5 {[%emt 0:00:08]} b6 {[%emt 0:00:14]} 12. h3 {[%emt 0:00:17]} Bd7 {[%emt 0:00:18]} 13. Nd2 {[%emt 0:00:30]} Ne8 {[%emt 0:01:57]} 14. Bg4 {[%emt 0:00:40]} Bxg4 {[%emt 0:02:20]} 15. hxg4 {[%emt 0:00:03]} Qd7 {[%emt 0:00:05]} 16. f3 {[%emt 0:00:19]} Nc7 {[%emt 0:00:03]} 17. Nc4 {[%emt 0:00:23]} Rfb8 {[%emt 0:00:14]} 18. a4 {[%emt 0:00:17]} N7a6 {[%emt 0:00:20]} 19. g5 {[%emt 0:01:31]} Qd8 {[%emt 0:00:27]} 20. Nb5 {[%emt 0:00:42]} Nc7 {[%emt 0:00:36]} 21. Nca3 {[%emt 0:00:23]} Nxb5 {[%emt 0:00:17]} 22. Nxb5 {[%emt 0:00:02]} Bxg5 {[%emt 0:00:35]} 23. Bxg5 {[%emt 0:00:05]} Qxg5 {[%emt 0:00:01]} 24. Nxd6 {[%emt 0:00:13]} Qe3+ {[%emt 0:00:03]} 25. Qf2 {[%emt 0:00:03]} Qxf2+ {[%emt 0:00:08]} 26. Kxf2 {[%emt 0:00:13]} f6 {[%emt 0:00:28]} 27. Ke3 {[%emt 0:00:19]} Ra7 {[%emt 0:00:24]} 28. Ra3 {[%emt 0:00:18]} Rd7 {[%emt 0:00:14]} 29. Nc4 {[%emt 0:00:18]} Kf7 {[%emt 0:00:42]} 30. g3 {[%emt 0:00:28]} Ke7 {[%emt 0:01:24]} 31. f4 {[%emt 0:00:06]} exf4+ {[%emt 0:00:11]} 32. gxf4 {[%emt 0:00:03]} f5 {[%emt 0:00:14]} 33. d6+ {[%emt 0:00:25]} Ke6 {[%emt 0:00:14]} 34. e5 {[%emt 0:00:03]} Na6 {[%emt 0:01:47]} 35. Nd2 {[%emt 0:00:51]} Nb4 {[%emt 0:00:22]} 36. Rc3 {[%emt 0:01:10]} Nd5+ {[%emt 0:00:14]} 37. Kd4 {[%emt 0:00:03]} Nxc3 {[%emt 0:00:06]} 38. bxc3 {[%emt 0:00:02]} h6 {[%emt 0:02:35]} 39. Rg1 {[%emt 0:00:15]} Kf7 {[%emt 0:00:46]} 40. Kd5 {[%emt 0:00:12]} Kf8 {[%emt 0:00:16]} 41. e6 {[%emt 0:00:05]} Rxd6+ {[%emt 0:00:02]} 42. Kxd6 {[%emt 0:00:06]} Rd8+ {[%emt 0:00:00]} 43. Ke5 {[%emt 0:00:07]} Rxd2 {[%emt 0:00:01]} 44. Kxf5 {[%emt 0:00:03]} Rc2 {[%emt 0:00:45]} 45. Rb1 {[%emt 0:00:35]} g5 46. Kf6 {[%emt 0:00:21]} 1-0

[Event "Hungarian Rapid-ch 2022"]
[Site "Ajka"]
[Date "2022.07.15"]
[Round "4.1"]
[White "Aczel, Gergely"]
[Black "Berkes, Ferenc"]
[Result "1/2-1/2"]
[ECO "E46"]
[WhiteElo "2499"]
[BlackElo "2649"]
[Annotator "ChessBase"]
[PlyCount "45"]
[EventDate "2022.07.15"]
[EventType "swiss"]
[EventCountry "HUN"]
[SourceTitle "playchess.com"]
[Source "ChessBase"]
[SourceQuality "1"]
[TimeControl "900+10"]

1. d4 {[%emt 0:00:13]} Nf6 {[%emt 0:00:11]} 2. c4 {[%emt 0:00:01]} e6 {[%emt 0:00:02]} 3. Nc3 {[%emt 0:00:02]} Bb4 {[%emt 0:00:02]} 4. e3 {[%emt 0:00:01]} O-O {[%emt 0:00:05]} 5. Bd2 {[%emt 0:00:02]} d5 {[%emt 0:00:06]} 6. Nf3 {[%emt 0:00:03]} Re8 {[%emt 0:00:13]} 7. Rc1 {[%emt 0:00:04]} Bf8 {[%emt 0:00:21]} 8. Be2 {[%emt 0:00:17]} a6 {[%emt 0:00:20]} 9. O-O {[%emt 0:00:48]} dxc4 {[%emt 0:00:02]} 10. Bxc4 {[%emt 0:00:02]} b5 {[%emt 0:00:02]} 11. Be2 {[%emt 0:00:54]} Bb7 {[%emt 0:00:04]} 12. Ne5 {[%emt 0:00:07]} Nbd7 {[%emt 0:00:33]} 13. Bf3 {[%emt 0:02:48]} Bxf3 {[%emt 0:00:03]} 14. Qxf3 {[%emt 0:00:02]} Nxe5 {[%emt 0:00:30]} 15. dxe5 {[%emt 0:00:02]} Nd7 {[%emt 0:00:02]} 16. Ne4 {[%emt 0:01:17]} Nxe5 {[%emt 0:00:09]} 17. Qg3 {[%emt 0:00:02]} Ng6 {[%emt 0:01:53]} 18. Ba5 {[%emt 0:01:24]} Qd5 {[%emt 0:05:04]} 19. Nc3 {[%emt 0:00:34]} Qb7 {[%emt 0:00:01]} 20. Qxc7 {[%emt 0:00:07]} Qxc7 {[%emt 0:00:01]} 21. Bxc7 {[%emt 0:00:02]} Rec8 {[%emt 0:02:29]} 22. Ne4 {[%emt 0:00:03]} Ra7 {[%emt 0:00:30]} 23. Bg3 {[%emt 0:00:47]} 1/2-1/2

[Event "Hungarian Rapid-ch 2022"]
[Site "Ajka"]
[Date "2022.07.15"]
[Round "4.2"]
[White "Bagi, Mate"]
[Black "Balog, Imre"]
[Result "0-1"]
[ECO "C10"]
[WhiteElo "2460"]
[BlackElo "2594"]
[Annotator "ChessBase"]
[PlyCount "86"]
[EventDate "2022.07.15"]
[EventType "swiss"]
[EventCountry "HUN"]
[SourceTitle "playchess.com"]
[Source "ChessBase"]
[SourceQuality "1"]
[TimeControl "900+10"]

1. e4 {[%emt 0:00:13]} e6 {[%emt 0:00:11]} 2. d4 {[%emt 0:00:03]} d5 {[%emt 0:00:03]} 3. Nc3 {[%emt 0:00:04]} Nc6 {[%emt 0:00:25]} 4. Nf3 {[%emt 0:00:32]} Nf6 {[%emt 0:00:25]} 5. Bd3 {[%emt 0:00:24]} Nb4 {[%emt 0:00:20]} 6. e5 {[%emt 0:01:04]} Nd7 {[%emt 0:00:17]} 7. Bg5 {[%emt 0:01:26]} Be7 {[%emt 0:00:02]} 8. Bxe7 {[%emt 0:00:06]} Qxe7 {[%emt 0:00:03]} 9. Qd2 {[%emt 0:00:26]} O-O {[%emt 0:01:18]} 10. O-O {[%emt 0:00:16]} c5 {[%emt 0:00:03]} 11. Rfe1 {[%emt 0:00:55]} Nc6 {[%emt 0:00:33]} 12. dxc5 {[%emt 0:00:57]} Nxc5 {[%emt 0:00:08]} 13. Nb5 {[%emt 0:00:36]} f5 {[%emt 0:01:30]} 14. exf6 {[%emt 0:02:47]} Qxf6 {[%emt 0:00:11]} 15. c4 {[%emt 0:00:26]} Nxd3 {[%emt 0:02:35]} 16. Qxd3 {[%emt 0:00:02]} Qxb2 {[%emt 0:00:09]} 17. Nc7 {[%emt 0:02:09]} Rb8 {[%emt 0:00:03]} 18. cxd5 {[%emt 0:00:06]} exd5 {[%emt 0:00:14]} 19. Ng5 {[%emt 0:02:23]} Qxf2+ {[%emt 0:00:53]} 20. Kh1 {[%emt 0:00:01]} Qf5 {[%emt 0:00:01]} 21. Qg3 {[%emt 0:01:20]} Qg4 {[%emt 0:00:50]} 22. Qe3 {[%emt 0:00:24]} h6 {[%emt 0:00:38]} 23. Nf3 {[%emt 0:00:11]} d4 {[%emt 0:00:54]} 24. Qb3+ {[%emt 0:00:01]} Kh7 {[%emt 0:00:18]} 25. Rac1 {[%emt 0:00:20]} Bf5 {[%emt 0:00:14]} 26. Nb5 {[%emt 0:00:27]} Rbd8 {[%emt 0:00:23]} 27. h3 {[%emt 0:00:23]} Qg3 {[%emt 0:00:06]} 28. Nfxd4 {[%emt 0:00:32]} Qxb3 {[%emt 0:00:17]} 29. Nxb3 {[%emt 0:00:02]} Rf7 {[%emt 0:00:13]} 30. Kg1 {[%emt 0:00:33]} Nb4 {[%emt 0:01:08]} 31. Rf1 {[%emt 0:00:28]} Rdd7 {[%emt 0:01:07]} 32. a3 {[%emt 0:00:18]} Nd3 {[%emt 0:00:14]} 33. Rc3 {[%emt 0:00:17]} b6 {[%emt 0:00:37]} 34. N3d4 {[%emt 0:00:20]} Bg6 {[%emt 0:00:05]} 35. Rxf7 {[%emt 0:00:08]} Rxf7 {[%emt 0:00:01]} 36. Nc6 {[%emt 0:00:12]} Nf4 {[%emt 0:00:13]} 37. Re3 {[%emt 0:00:10]} a6 {[%emt 0:00:21]} 38. Nbd4 {[%emt 0:00:10]} Rd7 {[%emt 0:00:17]} 39. h4 {[%emt 0:00:08]} Nd5 {[%emt 0:00:15]} 40. Re1 {[%emt 0:00:12]} Nf6 {[%emt 0:00:09]} 41. Re3 {[%emt 0:00:13]} Be4 {[%emt 0:00:07]} 42. Rb3 {[%emt 0:00:12]} b5 {[%emt 0:00:06]} 43. Kf2 {[%emt 0:00:04]} Rd6 {[%emt 0:00:04]} 0-1